[Event "Israel National League 2024"]
[Site "Israel"]
[Date "2024.01.12"]
[Round "2.20"]
[White "Tifferet, Shakked"]
[Black "Yaniv, Yuval"]
[Result "1/2-1/2"]
[ECO "A49"]
[WhiteElo "2334"]
[BlackElo "2383"]
[Annotator "RC"]
[PlyCount "119"]
[EventDate "2024.01.07"]
[EventType "team-tourn"]
[EventCountry "ISR"]
[SourceTitle "playchess.com"]
[Source "ChessBase"]
[SourceQuality "1"]
[TimeControl "40/5400+30:1800+30"]

1. Nf3 {[%emt 0:00:05]} Nf6 {[%emt 0:00:50]} 2. g3 {[%emt 0:00:09]} g6 {[%emt 0:00:41]} 3. b3 {[%emt 0:00:06]} Bg7 {[%emt 0:00:36]} 4. Bb2 {[%emt 0:00:06]} O-O {[%emt 0:00:54]} 5. Bg2 {[%emt 0:00:07]} d6 {[%emt 0:00:29]} 6. d4 {[%emt 0:00:16]} b5 {[%emt 0:01:09]} 7. O-O {[%emt 0:01:24]} Bb7 {[%emt 0:01:42]} 8. Qd3 {[%emt 0:00:34]} a6 {[%emt 0:03:53]} 9. Nbd2 {[%emt 0:00:32]} c5 {[%emt 0:05:25]} 10. e3 {[%emt 0:23:01]} Nbd7 {[%emt 0:04:57]} 11. c4 {[%emt 0:00:50]} e6 {[%emt 0:14:55]} 12. Rfd1 {[%emt 0:09:25]} b4 {[%emt 0:02:22]} 13. a3 {[%emt 0:17:56]} Re8 {[%emt 0:02:46]} 14. dxc5 {[%emt 0:06:30]} Nxc5 {[%emt 0:03:55]} 15. Qc2 {[%emt 0:04:44]} a5 {[%emt 0:03:15]} 16. Ne1 {[%emt 0:07:35]} Bxg2 {[%emt 0:07:53]} 17. Kxg2 {[%emt 0:00:45]} Qb6 {[%emt 0:00:43]} 18. axb4 {[%emt 0:01:20]} axb4 {[%emt 0:01:16]} 19. Nd3 {[%emt 0:00:57]} Nfd7 {[%emt 0:04:25]} 20. Bxg7 {[%emt 0:00:53]} Kxg7 {[%emt 0:02:14]} 21. Kg1 {[%emt 0:04:24]} Qb7 {[%emt 0:07:05]} 22. Nxc5 {[%emt 0:03:38]} Nxc5 {[%emt 0:00:09]} 23. Qb2+ {[%emt 0:01:18]} e5 {[%emt 0:01:00]} 24. h4 {[%emt 0:07:06]} h6 {[%emt 0:03:39]} 25. Rxa8 {[%emt 0:03:29]} Qxa8 {[%emt 0:03:42]} 26. Ra1 {[%emt 0:03:30]} Qc8 {[%emt 0:01:40]} 27. Nf3 {[%emt 0:01:35]} Qg4 {[%emt 0:01:23]} 28. Nh2 {[%emt 0:01:28]} Qf5 {[%emt 0:04:59]} 29. Rd1 {[%emt 0:00:01]} Ne4 {[%emt 0:00:45]} 30. Kg2 {[%emt 0:01:06]} Ra8 {[%emt 0:02:14]} 31. g4 {[%emt 0:00:37]} Qf6 {[%emt 0:03:28]} 32. Nf3 {[%emt 0:00:02]} Nc3 {[%emt 0:00:45]} 33. Ra1 {[%emt 0:00:31]} Qe6 {[%emt 0:06:38]} 34. Nh2 {[%emt 0:00:18]} Qc8 {[%emt 0:00:03]} 35. f3 {[%emt 0:01:05]} e4 {[%emt 0:01:49]} 36. f4 {[%emt 0:00:31]} Kh7 {[%emt 0:00:23]} 37. Rxa8 {[%emt 0:00:29]} Qxa8 {[%emt 0:00:02]} 38. Qd2 {[%emt 0:00:18]} Qa2 {[%emt 0:04:29]} 39. Qxa2 {[%emt 0:00:36]} Nxa2 {[%emt 0:00:01]} 40. Nf1 {[%emt 0:00:21]} f5 {[%emt 0:01:14]} 41. g5 {[%emt 0:09:11]} Nc1 {[%emt 0:02:07]} 42. Nd2 {[%emt 0:00:07]} h5 {[%emt 0:01:15]} 43. Kf2 {[%emt 0:00:23]} Kg8 {[%emt 0:00:27]} 44. Ke1 {[%emt 0:00:18]} Kf7 {[%emt 0:00:20]} 45. Kd1 {[%emt 0:00:54]} Nd3 {[%emt 0:00:07]} 46. Ke2 {[%emt 0:02:43]} Ke6 {[%emt 0:00:09]} 47. Kf1 {[%emt 0:01:45]} Nc1 {[%emt 0:00:30]} 48. Ke1 {[%emt 0:00:11]} Kd7 {[%emt 0:01:07]} 49. Kd1 {[%emt 0:00:28]} Nd3 {[%emt 0:00:04]} 50. Ke2 {[%emt 0:04:00]} Kc6 {[%emt 0:00:13]} 51. Kf1 {[%emt 0:00:13]} Kb6 {[%emt 0:00:54]} 52. Ke2 {[%emt 0:02:06]} Kc5 {[%emt 0:00:09]} 53. Kd1 {[%emt 0:04:18]} Kc6 {[%emt 0:07:14]} 54. Ke2 {[%emt 0:00:20]} Kb6 {[%emt 0:03:58]} 55. Kd1 {[%emt 0:00:11]} Kc5 {[%emt 0:00:08]} 56. Ke2 {[%emt 0:00:20]} Nc1+ {[%emt 0:10:41]} 57. Kd1 {[%emt 0:00:06]} Nd3 {[%emt 0:00:04]} 58. Ke2 {[%emt 0:00:04]} Nc1+ {[%emt 0:00:16]} 59. Kd1 {[%emt 0:00:05]} Nd3 {[%emt 0:00:04]} 60. Ke2 {[%emt 0:13:09]} 1/2-1/2

[Event "Israel National League 2024"]
[Site "Israel"]
[Date "2024.01.12"]
[Round "2.21"]
[White "Efroimski, Marsel"]
[Black "Lev, Ronen"]
[Result "1-0"]
[ECO "C77"]
[WhiteElo "2434"]
[BlackElo "2341"]
[Annotator "RC"]
[PlyCount "109"]
[EventDate "2024.01.07"]
[EventType "team-tourn"]
[EventCountry "ISR"]
[SourceTitle "playchess.com"]
[Source "ChessBase"]
[SourceQuality "1"]
[TimeControl "40/5400+30:1800+30"]

1. e4 {[%emt 0:00:02]} e5 {[%emt 0:00:07]} 2. Nf3 {[%emt 0:00:05]} Nc6 {[%emt 0:00:04]} 3. Bb5 {[%emt 0:00:04]} a6 {[%emt 0:00:06]} 4. Ba4 {[%emt 0:00:04]} Nf6 {[%emt 0:00:06]} 5. Nc3 {[%emt 0:00:04]} b5 {[%emt 0:00:48]} 6. Bb3 {[%emt 0:00:05]} Be7 {[%emt 0:00:05]} 7. a4 {[%emt 0:01:03]} b4 {[%emt 0:01:07]} 8. Nd5 {[%emt 0:00:01]} O-O {[%emt 0:02:11]} 9. d3 {[%emt 0:01:12]} d6 {[%emt 0:00:45]} 10. Nxf6+ {[%emt 0:00:06]} Bxf6 {[%emt 0:00:02]} 11. Bd5 {[%emt 0:00:06]} Bd7 {[%emt 0:00:24]} 12. b3 {[%emt 0:06:09]} Rb8 {[%emt 0:01:14]} 13. Bxc6 {[%emt 0:00:59]} Bxc6 {[%emt 0:00:08]} 14. Bb2 {[%emt 0:00:03]} Bg5 {[%emt 0:14:22]} 15. h4 {[%emt 0:07:26]} Bf4 {[%emt 0:03:10]} 16. g3 {[%emt 0:12:25]} Bh6 {[%emt 0:00:03]} 17. g4 {[%emt 0:01:47]} Bf4 {[%emt 0:00:30]} 18. Qe2 {[%emt 0:08:37]} d5 {[%emt 0:10:29]} 19. Nxe5 {[%emt 0:11:22]} Ba8 {[%emt 0:04:13]} 20. g5 {[%emt 0:15:17]} Re8 {[%emt 0:10:54]} 21. d4 {[%emt 0:12:11]} dxe4 {[%emt 0:06:09]} 22. Rg1 {[%emt 0:04:38]} c5 {[%emt 0:15:26]} 23. Rg4 {[%emt 0:01:54]} cxd4 {[%emt 0:04:04]} 24. Rxf4 {[%emt 0:00:49]} Rxe5 {[%emt 0:00:07]} 25. O-O-O {[%emt 0:02:37]} Qc7 {[%emt 0:04:11]} 26. Bxd4 {[%emt 0:02:00]} Re6 {[%emt 0:07:03]} 27. Rf5 {[%emt 0:01:32]} Rd8 {[%emt 0:02:54]} 28. Rc5 {[%emt 0:02:04]} Qe7 {[%emt 0:00:59]} 29. Be3 {[%emt 0:02:14]} Red6 {[%emt 0:05:16]} 30. Rxd6 {[%emt 0:00:09]} Qxd6 {[%emt 0:00:02]} 31. Qd2 {[%emt 0:03:06]} Qb8 {[%emt 0:01:23]} 32. Bf4 {[%emt 0:00:38]} Rxd2 {[%emt 0:01:31]} 33. Bxb8 {[%emt 0:00:04]} Rd8 {[%emt 0:00:03]} 34. Bf4 {[%emt 0:03:24]} f6 {[%emt 0:03:46]} 35. gxf6 {[%emt 0:01:53]} gxf6 {[%emt 0:00:21]} 36. Rc4 {[%emt 0:00:58]} Kf7 {[%emt 0:02:50]} 37. Rxb4 {[%emt 0:00:09]} Re8 {[%emt 0:00:33]} 38. h5 {[%emt 0:00:42]} Ke6 {[%emt 0:02:04]} 39. Rb6+ {[%emt 0:00:52]} Kf5 {[%emt 0:00:00]} 40. Be3 {[%emt 0:00:08]} Re6 {[%emt 0:00:00]} 41. Rb8 {[%emt 0:02:23]} Bc6 {[%emt 0:00:00]} 42. Rg8 {[%emt 0:05:45]} Be8 {[%emt 0:02:23]} 43. h6 {[%emt 0:00:45]} Ke5 {[%emt 0:02:56]} 44. Rg7 {[%emt 0:01:22]} Bg6 {[%emt 0:00:26]} 45. Ba7 {[%emt 0:02:44]} Kf4 {[%emt 0:00:57]} 46. b4 {[%emt 0:02:02]} Be8 {[%emt 0:05:46]} 47. Rxh7 {[%emt 0:02:01]} Bxa4 {[%emt 0:00:06]} 48. Rf7 {[%emt 0:01:29]} Kf5 {[%emt 0:10:11]} 49. Bd4 {[%emt 0:09:01]} Kg6 {[%emt 0:02:41]} 50. h7 {[%emt 0:00:06]} Re8 {[%emt 0:00:04]} 51. h8=Q {[%emt 0:02:45]} Rxh8 {[%emt 0:00:02]} 52. Rxf6+ {[%emt 0:00:04]} Kg5 {[%emt 0:00:12]} 53. Rxa6 {[%emt 0:00:17]} Rh1+ {[%emt 0:00:25]} 54. Kb2 {[%emt 0:00:18]} Bd7 {[%emt 0:00:23]} 55. Rd6 {[%emt 0:00:23]} 1-0

[Event "Israel National League 2024"]
[Site "Israel"]
[Date "2024.01.12"]
[Round "2.22"]
[White "Ben-Menachem, Itzhak"]
[Black "Zemach, Nadav"]
[Result "0-1"]
[ECO "D10"]
[WhiteElo "2266"]
[BlackElo "2384"]
[Annotator "RC"]
[PlyCount "98"]
[EventDate "2024.01.07"]
[EventType "team-tourn"]
[EventCountry "ISR"]
[SourceTitle "playchess.com"]
[Source "ChessBase"]
[SourceQuality "1"]
[TimeControl "40/5400+30:1800+30"]

1. d4 {[%emt 0:00:01]} d5 {[%emt 0:00:08]} 2. c4 {[%emt 0:00:10]} c6 {[%emt 0:00:07]} 3. cxd5 {[%emt 0:00:40]} cxd5 {[%emt 0:00:08]} 4. Nc3 {[%emt 0:00:03]} Nf6 {[%emt 0:00:10]} 5. Bf4 {[%emt 0:00:06]} Nc6 {[%emt 0:00:17]} 6. e3 {[%emt 0:00:22]} a6 {[%emt 0:00:15]} 7. Rc1 {[%emt 0:00:07]} Bg4 {[%emt 0:06:31]} 8. Qb3 {[%emt 0:06:42]} Na5 {[%emt 0:02:46]} 9. Qa4+ {[%emt 0:03:05]} Bd7 {[%emt 0:11:05]} 10. Qc2 {[%emt 0:02:46]} Rc8 {[%emt 0:04:58]} 11. Nf3 {[%emt 0:03:16]} e6 {[%emt 0:01:57]} 12. Bd3 {[%emt 0:02:23]} Be7 {[%emt 0:06:29]} 13. O-O {[%emt 0:04:16]} O-O {[%emt 0:01:42]} 14. Ne5 {[%emt 0:04:09]} b5 {[%emt 0:03:57]} 15. Qe2 {[%emt 0:06:15]} Nc4 {[%emt 0:07:17]} 16. Rfd1 {[%emt 0:32:22]} Nd6 {[%emt 0:03:22]} 17. Qf3 {[%emt 0:07:55]} Be8 {[%emt 0:09:11]} 18. g4 {[%emt 0:10:01]} b4 {[%emt 0:05:34]} 19. g5 {[%emt 0:02:40]} bxc3 {[%emt 0:02:27]} 20. gxf6 {[%emt 0:00:08]} Bxf6 {[%emt 0:00:11]} 21. Rxc3 {[%emt 0:00:52]} Rxc3 {[%emt 0:03:58]} 22. bxc3 {[%emt 0:00:01]} Be7 {[%emt 0:05:21]} 23. Qh3 {[%emt 0:03:17]} f5 {[%emt 0:01:48]} 24. c4 {[%emt 0:01:23]} dxc4 {[%emt 0:02:19]} 25. Nxc4 {[%emt 0:00:13]} Bc6 {[%emt 0:00:48]} 26. Ne5 {[%emt 0:02:07]} Bd5 {[%emt 0:00:39]} 27. Rc1 {[%emt 0:01:26]} Bf6 {[%emt 0:04:28]} 28. Bxa6 {[%emt 0:02:03]} Ne4 {[%emt 0:05:33]} 29. Be2 {[%emt 0:04:41]} Qa5 {[%emt 0:03:17]} 30. f3 {[%emt 0:00:35]} Qd2 {[%emt 0:00:48]} 31. Qf1 {[%emt 0:00:25]} Nc3 {[%emt 0:00:24]} 32. Bd3 {[%emt 0:00:35]} Bxe5 {[%emt 0:04:01]} 33. dxe5 {[%emt 0:00:39]} Rc8 {[%emt 0:00:21]} 34. Re1 {[%emt 0:00:55]} Bxf3 {[%emt 0:01:14]} 35. Ba6 {[%emt 0:00:36]} Rc7 {[%emt 0:00:48]} 36. Qf2 {[%emt 0:00:11]} Qxf2+ {[%emt 0:00:42]} 37. Kxf2 {[%emt 0:00:01]} Bd5 {[%emt 0:00:11]} 38. a3 {[%emt 0:00:40]} Ra7 {[%emt 0:00:21]} 39. Bd3 {[%emt 0:00:39]} Rxa3 {[%emt 0:00:07]} 40. Rc1 {[%emt 0:00:13]} Kf7 {[%emt 0:01:15]} 41. Bg5 {[%emt 0:02:48]} Ke8 {[%emt 0:03:13]} 42. h4 {[%emt 0:01:09]} h6 {[%emt 0:03:09]} 43. Bf4 {[%emt 0:00:32]} Kf7 {[%emt 0:00:21]} 44. Ke1 {[%emt 0:08:37]} Be4 {[%emt 0:02:08]} 45. Bc4 {[%emt 0:01:17]} Bf3 {[%emt 0:01:15]} 46. Rc2 {[%emt 0:01:00]} g5 {[%emt 0:02:58]} 47. hxg5 {[%emt 0:00:47]} hxg5 {[%emt 0:00:05]} 48. Bh2 {[%emt 0:01:12]} g4 {[%emt 0:02:07]} 49. Bf4 {[%emt 0:02:00]} Ra1+ {[%emt 0:00:05]} 0-1

[Event "Israel National League 2024"]
[Site "Israel"]
[Date "2024.01.12"]
[Round "2.23"]
[White "Vagman, Roy"]
[Black "Lavi, Idan"]
[Result "1-0"]
[ECO "B07"]
[WhiteElo "2302"]
[BlackElo "2118"]
[Annotator "RC"]
[PlyCount "71"]
[EventDate "2024.01.07"]
[EventType "team-tourn"]
[EventCountry "ISR"]
[SourceTitle "playchess.com"]
[Source "ChessBase"]
[SourceQuality "1"]
[TimeControl "40/5400+30:1800+30"]

1. e4 {[%emt 0:00:03]} d6 {[%emt 0:00:49]} 2. d4 {[%emt 0:00:12]} Nf6 {[%emt 0:00:09]} 3. Nc3 {[%emt 0:00:14]} Nbd7 {[%emt 0:00:19]} 4. f4 {[%emt 0:01:14]} e5 {[%emt 0:00:09]} 5. Nf3 {[%emt 0:00:06]} exd4 {[%emt 0:00:23]} 6. Qxd4 {[%emt 0:00:09]} c6 {[%emt 0:00:41]} 7. Be3 {[%emt 0:00:36]} d5 {[%emt 0:00:39]} 8. e5 {[%emt 0:00:13]} Ng4 {[%emt 0:05:55]} 9. Bg1 {[%emt 0:00:14]} Bc5 {[%emt 0:01:29]} 10. Qd2 {[%emt 0:00:10]} Bxg1 {[%emt 0:12:01]} 11. Rxg1 {[%emt 0:00:08]} Qb6 {[%emt 0:00:54]} 12. O-O-O {[%emt 0:10:16]} Nxh2 {[%emt 0:10:30]} 13. Nd4 {[%emt 0:00:43]} Nxf1 {[%emt 0:00:35]} 14. Rgxf1 {[%emt 0:00:46]} O-O {[%emt 0:21:39]} 15. Rde1 {[%emt 0:01:15]} Re8 {[%emt 0:00:27]} 16. Rf3 {[%emt 0:07:39]} Qc7 {[%emt 0:07:12]} 17. Nf5 {[%emt 0:10:29]} Nf8 {[%emt 0:09:02]} 18. Nd6 {[%emt 0:11:52]} Re7 {[%emt 0:04:09]} 19. Rg3 {[%emt 0:00:38]} f5 {[%emt 0:07:43]} 20. Ne2 {[%emt 0:10:29]} g6 {[%emt 0:02:46]} 21. Nd4 {[%emt 0:00:15]} Kh8 {[%emt 0:02:23]} 22. Rh1 {[%emt 0:01:07]} Be6 {[%emt 0:00:54]} 23. Rg5 {[%emt 0:01:50]} Rg7 {[%emt 0:01:31]} 24. Rh6 {[%emt 0:00:26]} Qd7 {[%emt 0:05:33]} 25. g4 {[%emt 0:06:21]} c5 {[%emt 0:00:18]} 26. Ne2 {[%emt 0:19:06]} fxg4 {[%emt 0:01:04]} 27. Ng3 {[%emt 0:01:12]} Rd8 {[%emt 0:02:30]} 28. f5 {[%emt 0:02:50]} gxf5 {[%emt 0:00:16]} 29. Nh5 {[%emt 0:01:14]} Rg6 {[%emt 0:01:55]} 30. Rgxg6 {[%emt 0:00:46]} Nxg6 {[%emt 0:00:16]} 31. Qg5 {[%emt 0:00:46]} Rf8 {[%emt 0:01:15]} 32. Qxg6 {[%emt 0:00:19]} Bg8 {[%emt 0:00:30]} 33. Qg5 {[%emt 0:00:32]} f4 {[%emt 0:00:33]} 34. e6 {[%emt 0:00:42]} Bxe6 {[%emt 0:00:28]} 35. Qe5+ {[%emt 0:00:06]} Kg8 {[%emt 0:00:22]} 36. Rxe6 {[%emt 0:00:08]} 1-0

[Event "Israel National League 2024"]
[Site "Israel"]
[Date "2024.01.12"]
[Round "2.24"]
[White "Michaeli, Omri"]
[Black "Lahav, Michal"]
[Result "0-1"]
[ECO "C19"]
[WhiteElo "1971"]
[BlackElo "2205"]
[Annotator "RC"]
[PlyCount "144"]
[EventDate "2024.01.07"]
[EventType "team-tourn"]
[EventCountry "ISR"]
[SourceTitle "playchess.com"]
[Source "ChessBase"]
[SourceQuality "1"]
[TimeControl "40/5400+30:1800+30"]

1. e4 {[%emt 0:00:05]} e6 {[%emt 0:00:07]} 2. d4 {[%emt 0:00:06]} d5 {[%emt 0:00:04]} 3. Nc3 {[%emt 0:00:18]} Bb4 {[%emt 0:00:23]} 4. e5 {[%emt 0:00:33]} c5 {[%emt 0:00:04]} 5. a3 {[%emt 0:00:10]} Bxc3+ {[%emt 0:00:09]} 6. bxc3 {[%emt 0:00:02]} Ne7 {[%emt 0:00:15]} 7. a4 {[%emt 0:01:38]} Qa5 {[%emt 0:00:46]} 8. Qd2 {[%emt 0:01:49]} Nbc6 {[%emt 0:21:05]} 9. Nf3 {[%emt 0:01:31]} Bd7 {[%emt 0:01:20]} 10. Ba3 {[%emt 0:10:59]} cxd4 {[%emt 0:00:48]} 11. cxd4 {[%emt 0:00:14]} Qxd2+ {[%emt 0:00:27]} 12. Kxd2 {[%emt 0:00:13]} Nf5 {[%emt 0:03:48]} 13. Bb2 {[%emt 0:21:05]} Na5 {[%emt 0:02:33]} 14. Bc3 {[%emt 0:08:26]} Nc4+ {[%emt 0:00:17]} 15. Bxc4 {[%emt 0:00:07]} dxc4 {[%emt 0:00:11]} 16. g4 {[%emt 0:12:13]} Ne7 {[%emt 0:07:17]} 17. Ng5 {[%emt 0:09:11]} Bc6 {[%emt 0:02:53]} 18. f3 {[%emt 0:00:34]} h5 {[%emt 0:29:39]} 19. h3 {[%emt 0:01:00]} Rd8 {[%emt 0:03:12]} 20. Ne4 {[%emt 0:02:14]} Nd5 {[%emt 0:00:25]} 21. g5 {[%emt 0:06:19]} O-O {[%emt 0:00:59]} 22. Bb2 {[%emt 0:01:55]} Ne7 {[%emt 0:09:15]} 23. c3 {[%emt 0:01:33]} Nf5 {[%emt 0:00:16]} 24. Ba3 {[%emt 0:01:15]} Rfe8 {[%emt 0:00:02]} 25. Rhg1 {[%emt 0:02:56]} Ra8 {[%emt 0:07:56]} 26. a5 {[%emt 0:01:40]} Nh4 {[%emt 0:06:41]} 27. Ke2 {[%emt 0:02:42]} Red8 {[%emt 0:00:23]} 28. Be7 {[%emt 0:03:33]} Rd7 {[%emt 0:01:12]} 29. Bd6 {[%emt 0:01:09]} Kh7 {[%emt 0:00:57]} 30. Bb4 {[%emt 0:04:19]} Kg6 {[%emt 0:00:39]} 31. Ke3 {[%emt 0:06:11]} Nf5+ {[%emt 0:00:23]} 32. Kf4 {[%emt 0:00:00]} Rh8 {[%emt 0:01:10]} 33. Bc5 {[%emt 0:00:00]} Ra8 {[%emt 0:00:21]} 34. Rgb1 {[%emt 0:00:00]} Bd5 {[%emt 0:00:45]} 35. Rb4 {[%emt 0:00:00]} Nh4 {[%emt 0:00:39]} 36. Rg1 {[%emt 0:00:00]} b6 {[%emt 0:00:32]} 37. axb6 {[%emt 0:03:00]} axb6 {[%emt 0:01:07]} 38. Rxb6 {[%emt 0:00:00]} Ra2 {[%emt 0:00:00]} 39. Rbb1 {[%emt 0:00:00]} Nf5 {[%emt 0:00:22]} 40. Rbf1 {[%emt 0:00:54]} Rh2 {[%emt 0:00:30]} 41. Rh1 {[%emt 0:07:17]} Rc2 {[%emt 0:04:40]} 42. Bb4 {[%emt 0:09:43]} Ra7 {[%emt 0:11:08]} 43. Nd6 {[%emt 0:00:56]} Raa2 {[%emt 0:06:08]} 44. Nxf5 {[%emt 0:03:08]} exf5 {[%emt 0:00:03]} 45. h4 {[%emt 0:03:27]} Rd2 {[%emt 0:03:39]} 46. Re1 {[%emt 0:04:20]} Rf2 {[%emt 0:01:06]} 47. Ref1 {[%emt 0:01:34]} Bxf3 {[%emt 0:05:06]} 48. Rxf2 {[%emt 0:01:08]} Rxf2 {[%emt 0:00:02]} 49. Ke3 {[%emt 0:00:15]} Bxh1 {[%emt 0:00:02]} 50. Kxf2 {[%emt 0:00:08]} f4 {[%emt 0:00:18]} 51. Bf8 {[%emt 0:00:09]} Bd5 {[%emt 0:01:11]} 52. Ba3 {[%emt 0:02:49]} Kf5 {[%emt 0:00:10]} 53. Bc1 {[%emt 0:00:21]} Kg4 {[%emt 0:02:48]} 54. Bd2 {[%emt 0:00:38]} g6 {[%emt 0:00:05]} 55. Bc1 {[%emt 0:00:34]} f3 {[%emt 0:00:19]} 56. Be3 {[%emt 0:00:45]} Kxh4 {[%emt 0:00:10]} 57. Bf4 {[%emt 0:01:02]} Kg4 {[%emt 0:00:04]} 58. Be3 {[%emt 0:00:05]} Kf5 {[%emt 0:01:25]} 59. Bd2 {[%emt 0:01:03]} Ke4 {[%emt 0:00:02]} 60. Bc1 {[%emt 0:00:41]} Kd3 {[%emt 0:00:06]} 61. Bb2 {[%emt 0:00:21]} Kc2 {[%emt 0:00:13]} 62. Ba3 {[%emt 0:00:18]} Kxc3 {[%emt 0:00:07]} 63. Ke3 {[%emt 0:00:16]} Kb3 {[%emt 0:00:26]} 64. Bc1 {[%emt 0:00:22]} Kc2 {[%emt 0:03:20]} 65. Ba3 {[%emt 0:01:02]} c3 {[%emt 0:00:00]} 66. Bb4 {[%emt 0:00:43]} Kb2 {[%emt 0:00:00]} 67. Kd3 {[%emt 0:00:09]} c2 {[%emt 0:00:00]} 68. Bc3+ {[%emt 0:00:37]} Kb1 {[%emt 0:00:00]} 69. Bd2 {[%emt 0:00:07]} c1=Q {[%emt 0:00:00]} 70. Bxc1 {[%emt 0:00:07]} Kxc1 {[%emt 0:00:00]} 71. Ke3 {[%emt 0:00:09]} Kd1 {[%emt 0:00:00]} 72. Kf2 {[%emt 0:00:47]} Kd2 {[%emt 0:00:00]} 0-1

[Event "Israel National League 2024"]
[Site "Israel"]
[Date "2024.01.12"]
[Round "2.25"]
[White "Rechlis, Gad"]
[Black "Parkhov, Yair"]
[Result "0-1"]
[ECO "D02"]
[WhiteElo "2473"]
[BlackElo "2495"]
[Annotator "TA"]
[PlyCount "82"]
[EventDate "2024.01.07"]
[EventType "team-tourn"]
[EventCountry "ISR"]
[SourceTitle "playchess.com"]
[Source "ChessBase"]
[SourceQuality "1"]
[TimeControl "40/5400+30:1800+30"]

{[%evp 9,82,24,32,0,0,-15,-20,-30,-25,-18,-22,-43,-47,-40,-37,-46,-31,-31,-31,-42,-31,-41,-22,-22,-22,-22,-24,-24,-14,-14,-9,-25,0,0,0,0,0,0,0,0,0,0,0,0,0,0,0,-343,-350,-328,-187,-563,-516,-829,-829,-1397,-1207,-1433,-1183,-2291,-4970,-10398,-9986,-12830,-12831,-12831,-12834,-12833,-12834,-12834,-12832,-12840,-12834,-12820,-11638]} 1. Nf3 {[%emt 0:02:50]} d5 {[%emt 0:01:03]} 2. g3 {[%emt 0:07:33]} Nc6 {[%emt 0:00:06][%cal Bb8c6,Bc6b4,Bb4c2,Bc2a1][%mdl 32]} 3. d4 {[%emt 0:02:10]} Bf5 {[%emt 0:00:04]} 4. Bg2 {[%emt 0:00:38]} e6 {[%emt 0:00:07]} 5. O-O {[%emt 0:00:27]} Nb4 {[%emt 0:00:03]} 6. c4 {[%emt 0:22:38] D02: 1 d4 d5 2 Nf3 sidelines, including 2...Nf6 3 g3 and 2...Nf6 3 Bf4.} Nc2 $1 {[%emt 0:00:08]} 7. Nh4 {[%emt 0:00:04] Black must now prevent Nxf5.} Nxa1 {[%emt 0:00:46][%mdl 64] [#] Discovered Attack} 8. Nxf5 {[%emt 0:00:05] The position is equal.} exf5 {[%emt 0:00:06]} 9. Nc3 {[%emt 0:03:30]} Qd7 {[%emt 0:02:06]} ({Don't do} 9... dxc4 10. Bxb7 Bd6 11. Bxa8 (11. Bd2 Rb8 $17) 11... Qxa8 12. Qa4+ Kf8 13. Bf4 $16) 10. cxd5 {[%emt 0:33:53]} Bb4 {[%emt 0:06:23] [#]} 11. Qd3 $146 {[%emt 0:00:47]} ({Predecessor:} 11. e4 Ne7 12. Bg5 fxe4 13. Nxe4 O-O 14. Nc5 Bxc5 15. dxc5 h6 16. Bf4 Rad8 17. d6 cxd6 18. Bxd6 {0-1 Andreikin,D (2729)-Vazquez,G (2573) Titled Tuesday intern op 11th Oct Late blitz 2022 (5)}) 11... Ne7 {[%emt 0:01:15]} 12. Bg5 {[%emt 0:00:05]} O-O {[%emt 0:29:31]} 13. Bxe7 {[%emt 0:05:49]} Qxe7 {[%emt 0:00:15]} 14. Rxa1 {[%emt 0:00:05]} g6 {[%emt 0:00:53]} 15. Rc1 {[%emt 0:00:44]} Rac8 {[%emt 0:12:52]} 16. e3 {[%emt 0:06:56]} Bd6 {[%emt 0:11:59]} 17. Na4 {[%emt 0:00:37]} Rfd8 {[%emt 0:00:25]} 18. Bf3 {[%emt 0:03:40]} Qe8 {[%emt 0:03:33]} 19. Nc5 {[%emt 0:01:05]} Bxc5 {[%emt 0:02:54]} 20. dxc5 {[%emt 0:00:56]} Qe5 {[%emt 0:00:13]} (20... b6 $5 {[%cal Rc7c6]}) 21. b4 {[%emt 0:00:39]} Rd7 {[%emt 0:01:36]} 22. Kg2 {[%emt 0:02:20]} Rcd8 {[%emt 0:01:43]} 23. Rc4 {[%emt 0:01:58]} Rxd5 {[%emt 0:11:06]} 24. Bxd5 {[%emt 0:00:07]} Rxd5 {[%emt 0:00:03]} 25. Rd4 {[%emt 0:00:18]} Rxd4 {[%emt 0:00:11]} 26. Qxd4 {[%emt 0:01:49]} Qe4+ {[%emt 0:02:06]} 27. Qxe4 {[%emt 0:01:21]} fxe4 $11 {[%emt 0:00:06][%mdl 4096] Endgame KP-KP} 28. f3 $2 {[%emt 0:00:49][%mdl 8192] [#]} (28. Kh3 $11 {and White is okay.}) 28... Kg7 $1 $19 {[%emt 0:05:33]} 29. fxe4 {[%emt 0:00:02]} Kf6 {[%emt 0:00:06] ...Ke5 would be deadly.} 30. g4 $2 {[%emt 0:00:14]} (30. Kf3 Ke5 31. a3) 30... Ke5 {[%emt 0:01:01] Black is clearly winning.} 31. Kf3 {[%emt 0:00:01]} (31. Kf2 $142 Kxe4 32. Ke2) 31... g5 {[%emt 0:00:54]} 32. b5 {[%emt 0:01:37]} c6 {[%emt 0:01:19]} 33. b6 {[%emt 0:00:39]} a6 {[%emt 0:01:29][%cal Ba7a6,Ba6a5][%mdl 32]} 34. h3 {[%emt 0:00:32]} a5 {[%emt 0:00:44]} 35. Kf2 {[%emt 0:00:30]} Kxe4 {[%emt 0:00:10]} 36. Ke2 {[%emt 0:00:01]} Kd5 {[%emt 0:01:00]} 37. Kd3 {[%emt 0:00:01]} Kxc5 {[%emt 0:00:08]} 38. Ke4 {[%emt 0:00:13]} Kxb6 {[%emt 0:00:30]} 39. Ke5 {[%emt 0:00:17]} c5 {[%emt 0:01:14]} 40. e4 {[%emt 0:00:09]} Kc7 {[%emt 0:01:00]} 41. Kd5 {[%emt 0:32:04]} b6 {[%emt 0:30:09] Weighted Error Value: White=0.81/Black=0.03 (flawless)} 0-1